[Event "Titled Tuesday Blitz February 15 Early 2022"]
[White "Bilan, Danila"]
[Black "Kollars, Dmitrij"]
[WhiteFideId "24161918"]
[BlackFideId "12909572"]
[WhiteElo "2164"]
[BlackElo "2584"]
[Result "0-1"]
[Round "01"]
[TimeControl "180+1"]
[Date "2022.02.15"]
[WhiteClock "0:00:09"]
[BlackClock "0:00:25"]

1. d4 {[%clk 0:03:00]}  Nf6 {[%clk 0:02:52]} 2. Nf3 {[%clk 0:03:00]}  e6 {[%clk 0:02:50]} 3. c4 {[%clk 0:02:55]}  d5 {[%clk 0:02:49]} 4. Nc3 {[%clk 0:02:54]}  Bb4 {[%clk 0:02:46]} 5. Qc2 {[%clk 0:02:48]}  O-O {[%clk 0:02:39]} 6. cxd5 {[%clk 0:02:39]}  Qxd5 {[%clk 0:02:40]} 7. Bd2 {[%clk 0:02:32]}  Bxc3 {[%clk 0:02:39]} 8. Bxc3 {[%clk 0:02:23]}  b6 {[%clk 0:02:34]} 9. g3 {[%clk 0:02:04]}  Bb7 {[%clk 0:02:30]} 10. Bg2 {[%clk 0:02:04]}  Qf5 {[%clk 0:02:23]} 11. Qxf5 {[%clk 0:01:55]}  exf5 {[%clk 0:02:24]} 12. O-O {[%clk 0:01:50]}  Nbd7 {[%clk 0:02:20]} 13. Rac1 {[%clk 0:01:39]}  Be4 {[%clk 0:02:15]} 14. Bb4 {[%clk 0:01:31]}  Rfc8 {[%clk 0:02:14]} 15. Nd2 {[%clk 0:01:18]}  Bxg2 {[%clk 0:02:13]} 16. Kxg2 {[%clk 0:01:19]}  Nd5 {[%clk 0:02:14]} 17. Ba3 {[%clk 0:01:16]}  f6 {[%clk 0:02:04]} 18. Rc2 {[%clk 0:01:12]}  Kf7 {[%clk 0:01:58]} 19. Rfc1 {[%clk 0:01:10]}  a5 {[%clk 0:01:48]} 20. e3 {[%clk 0:01:03]}  h5 {[%clk 0:01:42]} 21. Nb1 {[%clk 0:00:51]}  Ra7 {[%clk 0:00:51]} 22. Nc3 {[%clk 0:00:25]}  Nxc3 {[%clk 0:00:51]} 23. Rxc3 {[%clk 0:00:24]}  Rb7 {[%clk 0:00:50]} 24. Rc6 {[%clk 0:00:22]}  Nb8 {[%clk 0:00:48]} 25. R6c2 {[%clk 0:00:22]}  Ke6 {[%clk 0:00:47]} 26. b3 {[%clk 0:00:20]}  c6 {[%clk 0:00:47]} 27. Bb2 {[%clk 0:00:19]}  Kd5 {[%clk 0:00:46]} 28. f3 {[%clk 0:00:19]}  Re8 {[%clk 0:00:45]} 29. Kf2 {[%clk 0:00:20]}  Rbe7 {[%clk 0:00:45]} 30. Re2 {[%clk 0:00:17]}  Na6 {[%clk 0:00:44]} 31. Rce1 {[%clk 0:00:18]}  Nb4 {[%clk 0:00:42]} 32. e4+ {[%clk 0:00:16]}  Kd6 {[%clk 0:00:42]} 33. Ba3 {[%clk 0:00:16]}  fxe4 {[%clk 0:00:43]} 34. Bxb4+ {[%clk 0:00:15]}  axb4 {[%clk 0:00:43]} 35. fxe4 {[%clk 0:00:16]}  c5 {[%clk 0:00:43]} 36. dxc5+ {[%clk 0:00:12]}  bxc5 {[%clk 0:00:44]} 37. Kf3 {[%clk 0:00:12]}  Kc6 {[%clk 0:00:41]} 38. Rc1 {[%clk 0:00:12]}  Kb5 {[%clk 0:00:36]} 39. Rc4 {[%clk 0:00:12]}  Rd8 {[%clk 0:00:33]} 40. Rec2 {[%clk 0:00:12]}  Re5 {[%clk 0:00:32]} 41. Kf4 {[%clk 0:00:07]}  Rd3 {[%clk 0:00:31]} 42. h4 {[%clk 0:00:05]}  Rd1 {[%clk 0:00:30]} 43. Kf3 {[%clk 0:00:04]}  Rf1+ {[%clk 0:00:29]} 44. Kg2 {[%clk 0:00:04]}  Rd1 {[%clk 0:00:29]} 45. Kf3 {[%clk 0:00:05]}  g5 {[%clk 0:00:30]} 46. hxg5 {[%clk 0:00:04]}  fxg5 {[%clk 0:00:31]} 47. Kg2 {[%clk 0:00:04]}  Rd3 {[%clk 0:00:30]} 48. Kf2 {[%clk 0:00:03]}  g4 {[%clk 0:00:30]} 49. Kg2 {[%clk 0:00:04]}  Re3 {[%clk 0:00:30]} 50. Kf2 {[%clk 0:00:04]}  R3xe4 {[%clk 0:00:29]} 51. Rxe4 {[%clk 0:00:04]}  Rxe4 {[%clk 0:00:30]} 52. Rd2 {[%clk 0:00:04]}  Re5 {[%clk 0:00:28]} 53. Rd8 {[%clk 0:00:04]}  Rf5+ {[%clk 0:00:27]} 54. Ke2 {[%clk 0:00:03]}  Rf3 {[%clk 0:00:27]} 55. Rd5 {[%clk 0:00:03]}  Rxg3 {[%clk 0:00:26]} 56. Rxh5 {[%clk 0:00:04]}  Rg2+ {[%clk 0:00:27]} 57. Kd3 {[%clk 0:00:04]}  Rxa2 {[%clk 0:00:28]} 58. Rg5 {[%clk 0:00:04]}  Rb2 {[%clk 0:00:27]} 59. Rxg4 {[%clk 0:00:05]}  Rxb3+ {[%clk 0:00:27]} 60. Kc2 {[%clk 0:00:05]}  Rh3 {[%clk 0:00:27]} 61. Rg8 {[%clk 0:00:06]}  b3+ {[%clk 0:00:25]} 62. Kb2 {[%clk 0:00:06]}  Kb4 {[%clk 0:00:26]} 63. Rb8+ {[%clk 0:00:06]}  Kc4 {[%clk 0:00:26]} 64. Rg8 {[%clk 0:00:06]}  Rh2+ {[%clk 0:00:26]} 65. Kb1 {[%clk 0:00:07]}  Kc3 {[%clk 0:00:25]} 66. Rg3+ {[%clk 0:00:07]}  Kb4 {[%clk 0:00:25]} 67. Rg4+ {[%clk 0:00:08]}  c4 {[%clk 0:00:25]} 68. Rg8 {[%clk 0:00:09]}  Rh1+ {[%clk 0:00:25]} 0-1


[Site "https://www.chess.com"]

[Event "Titled Tuesday Blitz February 15 Early 2022"]
[White "Boruchovsky, Avital"]
[Black "Jakubowska, Anna"]
[WhiteFideId "2800055"]
[BlackFideId "1121952"]
[WhiteElo "2469"]
[BlackElo "1924"]
[Result "1-0"]
[Round "01"]
[TimeControl "180+1"]
[Date "2022.02.15"]
[WhiteClock "0:01:25"]
[BlackClock "0:00:24"]

1. b3 {[%clk 0:02:59]}  e5 {[%clk 0:02:59]} 2. Bb2 {[%clk 0:03:00]}  Nc6 {[%clk 0:02:59]} 3. e3 {[%clk 0:03:00]}  g6 {[%clk 0:02:58]} 4. f4 {[%clk 0:02:58]}  Bg7 {[%clk 0:02:58]} 5. Nf3 {[%clk 0:02:58]}  d6 {[%clk 0:02:57]} 6. Be2 {[%clk 0:02:58]}  Nge7 {[%clk 0:02:55]} 7. O-O {[%clk 0:02:57]}  O-O {[%clk 0:02:54]} 8. Nc3 {[%clk 0:02:52]}  f5 {[%clk 0:02:52]} 9. fxe5 {[%clk 0:02:50]}  Nxe5 {[%clk 0:02:49]} 10. h3 {[%clk 0:02:41]}  h6 {[%clk 0:02:43]} 11. d4 {[%clk 0:02:36]}  Nxf3+ {[%clk 0:02:38]} 12. Bxf3 {[%clk 0:02:37]}  c6 {[%clk 0:02:36]} 13. Ne2 {[%clk 0:02:34]}  Re8 {[%clk 0:02:29]} 14. c4 {[%clk 0:02:32]}  Kh7 {[%clk 0:02:27]} 15. Qd3 {[%clk 0:02:30]}  d5 {[%clk 0:02:17]} 16. Nf4 {[%clk 0:02:29]}  Qd6 {[%clk 0:01:56]} 17. a4 {[%clk 0:02:24]}  Be6 {[%clk 0:01:32]} 18. Ba3 {[%clk 0:02:17]}  Qd7 {[%clk 0:01:31]} 19. Rac1 {[%clk 0:02:11]}  Bf7 {[%clk 0:01:28]} 20. Bxe7 {[%clk 0:01:59]}  Rxe7 {[%clk 0:01:27]} 21. cxd5 {[%clk 0:02:00]}  cxd5 {[%clk 0:01:26]} 22. Rc5 {[%clk 0:01:56]}  Qe8 {[%clk 0:01:18]} 23. Nxd5 {[%clk 0:01:54]}  Bxd5 {[%clk 0:01:15]} 24. Rxd5 {[%clk 0:01:54]}  Rxe3 {[%clk 0:01:15]} 25. Qb5 {[%clk 0:01:45]}  Qxb5 {[%clk 0:01:08]} 26. axb5 {[%clk 0:01:46]}  Rxb3 {[%clk 0:01:05]} 27. Rc1 {[%clk 0:01:42]}  Rb4 {[%clk 0:00:51]} 28. Rc7 {[%clk 0:01:40]}  Kh8 {[%clk 0:00:51]} 29. Rdd7 {[%clk 0:01:32]}  Bxd4+ {[%clk 0:00:50]} 30. Kf1 {[%clk 0:01:32]}  Rxb5 {[%clk 0:00:35]} 31. Rxd4 {[%clk 0:01:31]}  Re8 {[%clk 0:00:30]} 32. Rdd7 {[%clk 0:01:28]}  Rb1+ {[%clk 0:00:27]} 33. Kf2 {[%clk 0:01:27]}  Rb2+ {[%clk 0:00:27]} 34. Kg1 {[%clk 0:01:25]}  a5 {[%clk 0:00:24]} 1-0


[Site "https://www.chess.com"]

[Event "Titled Tuesday Blitz February 15 Early 2022"]
[White "Brodowski, Piotr"]
[Black "Osmonbekov, Talaibek"]
[WhiteFideId "1124480"]
[BlackFideId "2017253"]
[WhiteElo "2422"]
[BlackElo "2135"]
[Result "1-0"]
[Round "01"]
[TimeControl "180+1"]
[Date "2022.02.15"]
[WhiteClock "0:00:13"]
[BlackClock "0:00:06"]

1. d4 {[%clk 0:02:56]}  e6 {[%clk 0:02:59]} 2. c4 {[%clk 0:02:53]}  f5 {[%clk 0:02:59]} 3. Nf3 {[%clk 0:02:51]}  Nf6 {[%clk 0:02:59]} 4. Qc2 {[%clk 0:02:49]}  b6 {[%clk 0:02:57]} 5. g3 {[%clk 0:02:40]}  Bb7 {[%clk 0:02:56]} 6. Nc3 {[%clk 0:02:40]}  Bb4 {[%clk 0:02:55]} 7. Bg2 {[%clk 0:02:40]}  O-O {[%clk 0:02:54]} 8. O-O {[%clk 0:02:40]}  a5 {[%clk 0:02:44]} 9. Rd1 {[%clk 0:02:27]}  Na6 {[%clk 0:02:31]} 10. d5 {[%clk 0:02:21]}  Bxc3 {[%clk 0:02:11]} 11. bxc3 {[%clk 0:02:07]}  Qe8 {[%clk 0:02:02]} 12. Ba3 {[%clk 0:02:00]}  Nc5 {[%clk 0:01:43]} 13. Nd4 {[%clk 0:01:19]}  f4 {[%clk 0:01:35]} 14. Rab1 {[%clk 0:00:58]}  Rb8 {[%clk 0:01:29]} 15. Nf3 {[%clk 0:00:39]}  e5 {[%clk 0:01:28]} 16. Bxc5 {[%clk 0:00:36]}  bxc5 {[%clk 0:01:28]} 17. Nd2 {[%clk 0:00:36]}  Qh5 {[%clk 0:01:20]} 18. Ne4 {[%clk 0:00:35]}  d6 {[%clk 0:01:16]} 19. h3 {[%clk 0:00:28]}  Nxe4 {[%clk 0:01:07]} 20. Qxe4 {[%clk 0:00:27]}  Ba6 {[%clk 0:01:00]} 21. g4 {[%clk 0:00:27]}  Qg6 {[%clk 0:00:51]} 22. Qxg6 {[%clk 0:00:23]}  hxg6 {[%clk 0:00:52]} 23. Be4 {[%clk 0:00:24]}  Kf7 {[%clk 0:00:49]} 24. Bd3 {[%clk 0:00:24]}  g5 {[%clk 0:00:46]} 25. f3 {[%clk 0:00:24]}  Rh8 {[%clk 0:00:31]} 26. Kg2 {[%clk 0:00:24]}  Kf6 {[%clk 0:00:29]} 27. Rh1 {[%clk 0:00:24]}  Rb6 {[%clk 0:00:22]} 28. Rxb6 {[%clk 0:00:23]}  cxb6 {[%clk 0:00:22]} 29. Rb1 {[%clk 0:00:23]}  Rb8 {[%clk 0:00:22]} 30. Rh1 {[%clk 0:00:20]}  Rh8 {[%clk 0:00:21]} 31. a3 {[%clk 0:00:20]}  Ke7 {[%clk 0:00:19]} 32. Rb1 {[%clk 0:00:20]}  Rb8 {[%clk 0:00:19]} 33. h4 {[%clk 0:00:18]}  gxh4 {[%clk 0:00:18]} 34. g5 {[%clk 0:00:19]}  Kd7 {[%clk 0:00:16]} 35. Kh3 {[%clk 0:00:19]}  Kc7 {[%clk 0:00:15]} 36. Bh7 {[%clk 0:00:12]}  Bxc4 {[%clk 0:00:14]} 37. Kxh4 {[%clk 0:00:10]}  Bxe2 {[%clk 0:00:13]} 38. Be4 {[%clk 0:00:11]}  Rh8+ {[%clk 0:00:11]} 39. Kg4 {[%clk 0:00:11]}  Bc4 {[%clk 0:00:11]} 40. Kf5 {[%clk 0:00:11]}  b5 {[%clk 0:00:05]} 41. Kg6 {[%clk 0:00:11]}  Rb8 {[%clk 0:00:04]} 42. Kxg7 {[%clk 0:00:11]}  b4 {[%clk 0:00:05]} 43. axb4 {[%clk 0:00:11]}  axb4 {[%clk 0:00:05]} 44. cxb4 {[%clk 0:00:12]}  cxb4 {[%clk 0:00:06]} 45. Kf7 {[%clk 0:00:12]}  Kd7 {[%clk 0:00:06]} 46. g6 {[%clk 0:00:13]}  b3 {[%clk 0:00:06]} 47. g7 {[%clk 0:00:13]} 1-0


[Site "https://www.chess.com"]

[Event "Titled Tuesday Blitz February 15 Early 2022"]
[White "Bugayev, Vladimir"]
[Black "Matinian, Nikita"]
[WhiteFideId "30901480"]
[BlackFideId "24129100"]
[WhiteElo "2378"]
[BlackElo "2422"]
[Result "1-0"]
[Round "01"]
[TimeControl "180+1"]
[Date "2022.02.15"]
[WhiteClock "0:00:18"]
[BlackClock "0:00:09"]

1. e4 {[%clk 0:02:59]}  c5 {[%clk 0:02:58]} 2. Nc3 {[%clk 0:02:59]}  Nc6 {[%clk 0:02:57]} 3. Bb5 {[%clk 0:03:00]}  Nd4 {[%clk 0:02:57]} 4. Nf3 {[%clk 0:03:00]}  a6 {[%clk 0:02:56]} 5. Bd3 {[%clk 0:03:00]}  e6 {[%clk 0:02:55]} 6. O-O {[%clk 0:02:59]}  Nc6 {[%clk 0:02:54]} 7. b3 {[%clk 0:02:57]}  d6 {[%clk 0:02:52]} 8. Bb2 {[%clk 0:02:57]}  Nf6 {[%clk 0:02:52]} 9. Re1 {[%clk 0:02:57]}  e5 {[%clk 0:02:51]} 10. a4 {[%clk 0:02:53]}  Be7 {[%clk 0:02:48]} 11. Bc4 {[%clk 0:02:53]}  O-O {[%clk 0:02:48]} 12. h3 {[%clk 0:02:48]}  b6 {[%clk 0:02:43]} 13. Bd5 {[%clk 0:02:42]}  Nxd5 {[%clk 0:02:41]} 14. Nxd5 {[%clk 0:02:40]}  Kh8 {[%clk 0:02:38]} 15. c3 {[%clk 0:02:40]}  f5 {[%clk 0:02:37]} 16. exf5 {[%clk 0:02:32]}  Bxf5 {[%clk 0:02:38]} 17. Nxe7 {[%clk 0:02:20]}  Qxe7 {[%clk 0:02:38]} 18. d4 {[%clk 0:02:20]}  e4 {[%clk 0:02:38]} 19. d5 {[%clk 0:02:12]}  Qf7 {[%clk 0:02:20]} 20. dxc6 {[%clk 0:02:08]}  exf3 {[%clk 0:02:20]} 21. Qxf3 {[%clk 0:02:09]}  Qxb3 {[%clk 0:02:19]} 22. Qe2 {[%clk 0:01:56]}  d5 {[%clk 0:02:04]} 23. c4 {[%clk 0:01:42]}  d4 {[%clk 0:02:04]} 24. a5 {[%clk 0:01:42]}  d3 {[%clk 0:02:00]} 25. Qe5 {[%clk 0:01:42]}  Rf7 {[%clk 0:01:55]} 26. axb6 {[%clk 0:01:39]}  d2 {[%clk 0:01:55]} 27. b7 {[%clk 0:01:35]}  dxe1=Q+ {[%clk 0:01:53]} 28. Rxe1 {[%clk 0:01:36]}  Raf8 {[%clk 0:01:51]} 29. Re3 {[%clk 0:01:26]}  Qd1+ {[%clk 0:01:38]} 30. Kh2 {[%clk 0:01:26]}  Qd8 {[%clk 0:01:39]} 31. Qg3 {[%clk 0:01:09]}  Qb6 {[%clk 0:00:56]} 32. Rb3 {[%clk 0:01:00]}  Qxc6 {[%clk 0:00:36]} 33. b8=Q {[%clk 0:00:57]}  Rxb8 {[%clk 0:00:36]} 34. Rxb8+ {[%clk 0:00:49]}  Bc8 {[%clk 0:00:36]} 35. h4 {[%clk 0:00:37]}  h6 {[%clk 0:00:32]} 36. Qe5 {[%clk 0:00:34]}  Kh7 {[%clk 0:00:24]} 37. Rb3 {[%clk 0:00:29]}  Qe6 {[%clk 0:00:17]} 38. Qxc5 {[%clk 0:00:24]}  Rxf2 {[%clk 0:00:17]} 39. Qxf2 {[%clk 0:00:23]}  Qxc4 {[%clk 0:00:15]} 40. Rg3 {[%clk 0:00:22]}  Qxh4+ {[%clk 0:00:14]} 41. Kg1 {[%clk 0:00:21]}  Bg4 {[%clk 0:00:13]} 42. Qc2+ {[%clk 0:00:19]}  Kg8 {[%clk 0:00:11]} 43. Qc3 {[%clk 0:00:20]}  Qg5 {[%clk 0:00:08]} 44. Qxg7+ {[%clk 0:00:19]}  Qxg7 {[%clk 0:00:08]} 45. Bxg7 {[%clk 0:00:20]}  h5 {[%clk 0:00:09]} 46. Bc3 {[%clk 0:00:18]}  Kf7 {[%clk 0:00:09]} 47. Re3 {[%clk 0:00:18]}  Kg6 {[%clk 0:00:08]} 48. Kf2 {[%clk 0:00:19]}  Kf5 {[%clk 0:00:09]} 49. Kg3 {[%clk 0:00:19]}  Kg5 {[%clk 0:00:09]} 50. Re5+ {[%clk 0:00:20]}  Kf6 {[%clk 0:00:09]} 51. Rxh5+ {[%clk 0:00:18]} 1-0


[Site "https://www.chess.com"]

[Event "Titled Tuesday Blitz February 15 Early 2022"]
[White "Daneshvar, Bardiya"]
[Black "Dzhaparov, Medet"]
[WhiteFideId "12576468"]
[BlackFideId "13803689"]
[WhiteElo "2295"]
[BlackElo "1702"]
[Result "1-0"]
[Round "01"]
[TimeControl "180+1"]
[Date "2022.02.15"]
[WhiteClock "0:00:06"]
[BlackClock "0:00:11"]

1. d4 {[%clk 0:03:00]}  Nf6 {[%clk 0:02:58]} 2. c4 {[%clk 0:03:00]}  g6 {[%clk 0:02:58]} 3. Nc3 {[%clk 0:02:58]}  d5 {[%clk 0:02:58]} 4. cxd5 {[%clk 0:02:57]}  Nxd5 {[%clk 0:02:57]} 5. e4 {[%clk 0:02:58]}  Nxc3 {[%clk 0:02:57]} 6. bxc3 {[%clk 0:02:59]}  Bg7 {[%clk 0:02:58]} 7. Bc4 {[%clk 0:02:58]}  c5 {[%clk 0:02:57]} 8. Ne2 {[%clk 0:02:59]}  Nc6 {[%clk 0:02:57]} 9. Be3 {[%clk 0:02:58]}  O-O {[%clk 0:02:58]} 10. O-O {[%clk 0:02:58]}  Bg4 {[%clk 0:02:58]} 11. f3 {[%clk 0:02:58]}  Bd7 {[%clk 0:02:51]} 12. Rb1 {[%clk 0:02:43]}  Rb8 {[%clk 0:02:47]} 13. Qd2 {[%clk 0:02:32]}  Na5 {[%clk 0:02:47]} 14. Bd3 {[%clk 0:02:30]}  c4 {[%clk 0:02:46]} 15. Bc2 {[%clk 0:02:29]}  b5 {[%clk 0:02:46]} 16. d5 {[%clk 0:02:28]}  a6 {[%clk 0:02:45]} 17. Nd4 {[%clk 0:02:17]}  Nb7 {[%clk 0:02:41]} 18. a4 {[%clk 0:02:11]}  bxa4 {[%clk 0:02:37]} 19. Qe2 {[%clk 0:02:04]}  Na5 {[%clk 0:02:35]} 20. f4 {[%clk 0:01:53]}  Qc7 {[%clk 0:02:31]} 21. e5 {[%clk 0:01:50]}  Bb5 {[%clk 0:02:23]} 22. h4 {[%clk 0:01:31]}  Nb3 {[%clk 0:02:16]} 23. h5 {[%clk 0:01:29]}  Rfd8 {[%clk 0:01:53]} 24. Be4 {[%clk 0:01:23]}  Nc5 {[%clk 0:01:48]} 25. Bf3 {[%clk 0:01:20]}  Nd3 {[%clk 0:01:45]} 26. Ra1 {[%clk 0:01:01]}  Qa5 {[%clk 0:01:36]} 27. Nc6 {[%clk 0:00:47]}  Bxc6 {[%clk 0:01:34]} 28. dxc6 {[%clk 0:00:48]}  Qxc3 {[%clk 0:01:34]} 29. c7 {[%clk 0:00:46]}  Rdc8 {[%clk 0:01:29]} 30. cxb8=Q {[%clk 0:00:46]}  Rxb8 {[%clk 0:01:30]} 31. Qd2 {[%clk 0:00:32]}  Qb3 {[%clk 0:01:24]} 32. hxg6 {[%clk 0:00:25]}  hxg6 {[%clk 0:01:23]} 33. Be4 {[%clk 0:00:21]}  Nb2 {[%clk 0:01:05]} 34. Bc2 {[%clk 0:00:17]}  Qb5 {[%clk 0:01:00]} 35. Bd4 {[%clk 0:00:16]}  e6 {[%clk 0:00:53]} 36. Rfb1 {[%clk 0:00:14]}  Qd5 {[%clk 0:00:49]} 37. Qc3 {[%clk 0:00:11]}  Rd8 {[%clk 0:00:36]} 38. Qxb2 {[%clk 0:00:08]}  Qxd4+ {[%clk 0:00:36]} 39. Qxd4 {[%clk 0:00:09]}  Rxd4 {[%clk 0:00:36]} 40. g3 {[%clk 0:00:09]}  Rd2 {[%clk 0:00:36]} 41. Bxa4 {[%clk 0:00:08]}  Rd3 {[%clk 0:00:33]} 42. Kg2 {[%clk 0:00:07]}  Rd2+ {[%clk 0:00:33]} 43. Kf3 {[%clk 0:00:06]}  Rd3+ {[%clk 0:00:34]} 44. Kg4 {[%clk 0:00:07]}  Bf8 {[%clk 0:00:27]} 45. Bc6 {[%clk 0:00:05]}  Kg7 {[%clk 0:00:24]} 46. Rxa6 {[%clk 0:00:05]}  Bc5 {[%clk 0:00:23]} 47. Rc1 {[%clk 0:00:06]}  Bf2 {[%clk 0:00:22]} 48. Bf3 {[%clk 0:00:06]}  c3 {[%clk 0:00:21]} 49. Rc6 {[%clk 0:00:06]}  Bd4 {[%clk 0:00:21]} 50. Rc7 {[%clk 0:00:06]}  Rd2 {[%clk 0:00:20]} 51. R7xc3 {[%clk 0:00:05]}  Bxc3 {[%clk 0:00:20]} 52. Rxc3 {[%clk 0:00:06]}  Rh2 {[%clk 0:00:19]} 53. Kg5 {[%clk 0:00:06]}  Rh8 {[%clk 0:00:19]} 54. g4 {[%clk 0:00:06]}  Rd8 {[%clk 0:00:16]} 55. Rc7 {[%clk 0:00:07]}  Rh8 {[%clk 0:00:13]} 56. Bc6 {[%clk 0:00:06]}  Rd8 {[%clk 0:00:13]} 57. Re7 {[%clk 0:00:06]}  Kf8 {[%clk 0:00:13]} 58. Kf6 {[%clk 0:00:06]}  Kg8 {[%clk 0:00:11]} 59. Rxf7 {[%clk 0:00:06]} 1-0


[Site "https://www.chess.com"]

[Event "Titled Tuesday Blitz February 15 Early 2022"]
[White "Deac, Bogdan-Daniel"]
[Black "Vusatiuk, Vladimir"]
[WhiteFideId "1226380"]
[BlackFideId "14118610"]
[WhiteElo "2646"]
[BlackElo "2157"]
[Result "1-0"]
[Round "01"]
[TimeControl "180+1"]
[Date "2022.02.15"]
[WhiteClock "0:00:08"]
[BlackClock "0:00:04"]

1. d4 {[%clk 0:03:00]}  Nf6 {[%clk 0:02:59]} 2. Nf3 {[%clk 0:02:59]}  e6 {[%clk 0:02:59]} 3. c4 {[%clk 0:02:59]}  a6 {[%clk 0:02:58]} 4. Nc3 {[%clk 0:02:58]}  d5 {[%clk 0:02:59]} 5. cxd5 {[%clk 0:02:58]}  exd5 {[%clk 0:02:59]} 6. Bg5 {[%clk 0:02:58]}  Be7 {[%clk 0:02:59]} 7. e3 {[%clk 0:02:57]}  O-O {[%clk 0:02:57]} 8. Bd3 {[%clk 0:02:57]}  Be6 {[%clk 0:02:56]} 9. O-O {[%clk 0:02:48]}  Nbd7 {[%clk 0:02:55]} 10. h3 {[%clk 0:02:47]}  c5 {[%clk 0:02:46]} 11. dxc5 {[%clk 0:02:46]}  Nxc5 {[%clk 0:02:45]} 12. Nd4 {[%clk 0:02:47]}  h6 {[%clk 0:02:42]} 13. Bf4 {[%clk 0:02:41]}  Bd6 {[%clk 0:02:41]} 14. Bxd6 {[%clk 0:02:35]}  Qxd6 {[%clk 0:02:40]} 15. Bc2 {[%clk 0:02:33]}  Nce4 {[%clk 0:02:33]} 16. Nce2 {[%clk 0:02:16]}  Rac8 {[%clk 0:02:23]} 17. Nf4 {[%clk 0:02:15]}  Bd7 {[%clk 0:02:07]} 18. Bb3 {[%clk 0:02:06]}  Nc5 {[%clk 0:02:01]} 19. Bc2 {[%clk 0:01:59]}  Ne6 {[%clk 0:01:57]} 20. Nfe2 {[%clk 0:01:43]}  Nxd4 {[%clk 0:01:52]} 21. Nxd4 {[%clk 0:01:44]}  Ne4 {[%clk 0:01:44]} 22. Qe2 {[%clk 0:01:34]}  Rfd8 {[%clk 0:01:27]} 23. Rfd1 {[%clk 0:01:32]}  Qe5 {[%clk 0:01:24]} 24. Bb3 {[%clk 0:01:18]}  Be6 {[%clk 0:01:13]} 25. Rac1 {[%clk 0:00:55]}  Nc5 {[%clk 0:01:09]} 26. Bc2 {[%clk 0:00:48]}  Ne4 {[%clk 0:01:04]} 27. f4 {[%clk 0:00:40]}  Qf6 {[%clk 0:00:59]} 28. Qf3 {[%clk 0:00:31]}  Nd6 {[%clk 0:00:54]} 29. f5 {[%clk 0:00:26]}  Bd7 {[%clk 0:00:54]} 30. Qxd5 {[%clk 0:00:26]}  Nc4 {[%clk 0:00:35]} 31. Qf3 {[%clk 0:00:16]}  Nxb2 {[%clk 0:00:35]} 32. Re1 {[%clk 0:00:15]}  Bc6 {[%clk 0:00:27]} 33. Qe2 {[%clk 0:00:09]}  Bd5 {[%clk 0:00:23]} 34. Bb3 {[%clk 0:00:08]}  Bxb3 {[%clk 0:00:11]} 35. Rxc8 {[%clk 0:00:06]}  Rxc8 {[%clk 0:00:09]} 36. axb3 {[%clk 0:00:06]}  Rd8 {[%clk 0:00:02]} 37. Qxb2 {[%clk 0:00:06]}  b5 {[%clk 0:00:03]} 38. Qf2 {[%clk 0:00:06]}  Re8 {[%clk 0:00:03]} 39. Rc1 {[%clk 0:00:06]}  h5 {[%clk 0:00:03]} 40. Qf4 {[%clk 0:00:06]}  g6 {[%clk 0:00:02]} 41. Rc6 {[%clk 0:00:06]}  Qe5 {[%clk 0:00:01]} 42. fxg6 {[%clk 0:00:06]}  Qxe3+ {[%clk 0:00:01]} 43. Qxe3 {[%clk 0:00:06]}  Rxe3 {[%clk 0:00:02]} 44. Rc8+ {[%clk 0:00:06]}  Kg7 {[%clk 0:00:02]} 45. Nf5+ {[%clk 0:00:06]}  Kf6 {[%clk 0:00:02]} 46. Nxe3 {[%clk 0:00:07]}  fxg6 {[%clk 0:00:03]} 47. Rc6+ {[%clk 0:00:07]}  Ke5 {[%clk 0:00:03]} 48. Rxa6 {[%clk 0:00:08]}  g5 {[%clk 0:00:04]} 49. Rb6 {[%clk 0:00:08]} 1-0


[Site "https://www.chess.com"]

[Event "Titled Tuesday Blitz February 15 Early 2022"]
[White "Delorme, Alban"]
[Black "Liyanage, Ranindu Dilshan"]
[WhiteFideId "623636"]
[BlackFideId "9915834"]
[WhiteElo "2197"]
[BlackElo "1858"]
[Result "0-1"]
[Round "01"]
[TimeControl "180+1"]
[Date "2022.02.15"]
[WhiteClock "0:00:39"]
[BlackClock "0:01:30"]

1. e4 {[%clk 0:03:00]}  e6 {[%clk 0:02:54]} 2. d4 {[%clk 0:03:00]}  d5 {[%clk 0:02:54]} 3. Nc3 {[%clk 0:02:59]}  Bb4 {[%clk 0:02:53]} 4. e5 {[%clk 0:02:57]}  c5 {[%clk 0:02:53]} 5. a3 {[%clk 0:02:58]}  Bxc3+ {[%clk 0:02:51]} 6. bxc3 {[%clk 0:02:59]}  Ne7 {[%clk 0:02:51]} 7. h4 {[%clk 0:02:59]}  Qc7 {[%clk 0:02:50]} 8. h5 {[%clk 0:02:58]}  h6 {[%clk 0:02:50]} 9. Rb1 {[%clk 0:02:54]}  Nbc6 {[%clk 0:02:50]} 10. Qg4 {[%clk 0:02:45]}  Rg8 {[%clk 0:02:50]} 11. a4 {[%clk 0:02:38]}  Nf5 {[%clk 0:02:45]} 12. Bb5 {[%clk 0:02:34]}  Bd7 {[%clk 0:02:42]} 13. Bxc6 {[%clk 0:02:33]}  Bxc6 {[%clk 0:02:42]} 14. dxc5 {[%clk 0:02:14]}  Qxe5+ {[%clk 0:02:39]} 15. Ne2 {[%clk 0:02:14]}  g6 {[%clk 0:02:25]} 16. hxg6 {[%clk 0:01:57]}  Rxg6 {[%clk 0:02:23]} 17. Qf3 {[%clk 0:01:54]}  d4 {[%clk 0:02:17]} 18. cxd4 {[%clk 0:01:48]}  Nxd4 {[%clk 0:02:10]} 19. Qd3 {[%clk 0:01:42]}  Bxg2 {[%clk 0:01:56]} 20. Rh4 {[%clk 0:01:16]}  Nf3+ {[%clk 0:01:51]} 21. Kd1 {[%clk 0:01:12]}  Rd8 {[%clk 0:01:33]} 22. Re4 {[%clk 0:00:39]}  Qxe4 {[%clk 0:01:30]} 0-1


[Site "https://www.chess.com"]